[Event "DEN-ch 2019"]
[Site "Svendborg"]
[Date "2019.04.13"]
[Round "1.1"]
[White "Antonsen, Mikkel"]
[Black "Aabling-Thomsen, Jakob"]
[Result "1-0"]
[ECO "E81"]
[WhiteElo "2426"]
[BlackElo "2358"]
[Annotator "ChessBase"]
[PlyCount "99"]
[EventDate "2019.04.13"]
[EventType "tourn"]
[EventCountry "DEN"]
[SourceTitle "playchess.com"]
[Source "ChessBase"]
[SourceQuality "1"]
[TimeControl "40/5400+30:1800+30"]

1. d4 {[%emt 0:00:00]} Nf6 {[%emt 0:00:00]} 2. c4 {[%emt 0:00:00]} g6 {[%emt 0:00:18]} 3. Nc3 {[%emt 0:00:00]} Bg7 {[%emt 0:00:35]} 4. e4 {[%emt 0:00:13]} d6 {[%emt 0:00:04]} 5. f3 {[%emt 0:01:32]} O-O {[%emt 0:00:59]} 6. Nge2 {[%emt 0:00:04]} c5 {[%emt 0:01:03]} 7. d5 {[%emt 0:00:09]} e6 {[%emt 0:01:08]} 8. Ng3 {[%emt 0:00:19]} exd5 {[%emt 0:02:19]} 9. cxd5 {[%emt 0:00:16]} a6 {[%emt 0:00:44]} 10. a4 {[%emt 0:00:37]} Ne8 {[%emt 0:01:11]} 11. Be3 {[%emt 0:05:49]} h5 {[%emt 0:03:16]} 12. Be2 {[%emt 0:04:00]} h4 {[%emt 0:02:07]} 13. Nf1 {[%emt 0:00:04]} Nd7 {[%emt 0:01:22]} 14. Qd2 {[%emt 0:05:53]} h3 {[%emt 0:08:07]} 15. g4 {[%emt 0:04:28]} Qh4+ {[%emt 0:07:40]} 16. Ng3 {[%emt 0:01:24]} Qh8 {[%emt 0:04:20]} 17. O-O {[%emt 0:01:21]} Ne5 {[%emt 0:02:25]} 18. g5 {[%emt 0:05:33]} Nc7 {[%emt 0:13:42]} 19. f4 {[%emt 0:10:32]} Ng4 {[%emt 0:00:34]} 20. Bxg4 {[%emt 0:00:03]} Bxg4 {[%emt 0:00:07]} 21. f5 {[%emt 0:02:44]} Be5 {[%emt 0:04:41]} 22. Bf4 {[%emt 0:05:46]} Bd4+ {[%emt 0:14:29]} 23. Kh1 {[%emt 0:00:14]} Rad8 {[%emt 0:01:11]} 24. Bxd6 {[%emt 0:04:21]} Rxd6 {[%emt 0:06:54]} 25. Qf4 {[%emt 0:00:10]} gxf5 {[%emt 0:02:38]} 26. Qxd6 {[%emt 0:02:16]} Be5 {[%emt 0:14:48]} 27. Qxc5 {[%emt 0:02:32]} Bxg3 {[%emt 0:04:30]} 28. hxg3 {[%emt 0:00:14]} Qe5 {[%emt 0:00:13]} 29. Qe3 {[%emt 0:06:27]} fxe4 {[%emt 0:01:06]} 30. Qf4 {[%emt 0:07:06]} Qxf4 {[%emt 0:00:34]} 31. Rxf4 {[%emt 0:00:04]} Bf3+ {[%emt 0:01:04]} 32. Kh2 {[%emt 0:00:17]} Rd8 {[%emt 0:00:22]} 33. Rf5 {[%emt 0:00:08]} Ne8 {[%emt 0:00:38]} 34. Re5 {[%emt 0:00:58]} Nd6 {[%emt 0:00:07]} 35. b3 {[%emt 0:05:15]} Kg7 {[%emt 0:00:58]} 36. Rc1 {[%emt 0:00:31]} Kg6 {[%emt 0:00:31]} 37. Nb1 {[%emt 0:01:10]} Rd7 {[%emt 0:00:29]} 38. Nd2 {[%emt 0:00:13]} Bg2 {[%emt 0:00:13]} 39. Nc4 {[%emt 0:02:03]} Nf5 {[%emt 0:00:40]} 40. Rd1 {[%emt 0:03:12]} b5 {[%emt 0:00:33]} 41. Re6+ {[%emt 0:49:48]} Kxg5 {[%emt 0:20:01]} 42. Ne5 {[%emt 0:00:00]} Ra7 {[%emt 0:04:26]} 43. Re8 {[%emt 0:00:00]} Ne3 {[%emt 0:01:33]} 44. Rd4 {[%emt 0:00:00]} f6 {[%emt 0:00:50]} 45. d6 {[%emt 0:00:00]} Rh7 {[%emt 0:01:25]} 46. Rd1 {[%emt 0:00:00]} Nxd1 {[%emt 0:03:00]} 47. Re7 {[%emt 0:00:00]} Rxe7 {[%emt 0:03:00]} 48. dxe7 {[%emt 0:00:00]} fxe5 {[%emt 0:00:16]} 49. e8=Q {[%emt 0:00:00]} Ne3 {[%emt 0:00:38]} 50. Qxe5+ {[%emt 0:00:00]} 1-0

[Event "DEN-ch 2019"]
[Site "Svendborg"]
[Date "2019.04.14"]
[Round "2.4"]
[White "Olsen, Filip Boe"]
[Black "Teplyi, Igor"]
[Result "0-1"]
[ECO "E32"]
[WhiteElo "2414"]
[BlackElo "2418"]
[Annotator "NA"]
[PlyCount "123"]
[EventDate "2019.04.13"]
[EventType "tourn"]
[EventCountry "DEN"]
[SourceTitle "playchess.com"]
[Source "ChessBase"]
[SourceQuality "1"]
[TimeControl "40/5400+30:1800+30"]

1. d4 {[%emt 0:00:00]} Nf6 {[%emt 0:00:00]} 2. c4 {[%emt 0:00:00]} e6 {[%emt 0:00:00]} 3. Nc3 {[%emt 0:00:06]} Bb4 {[%emt 0:00:00]} 4. Qc2 {[%emt 0:00:12]} O-O {[%emt 0:00:22]} 5. Nf3 {[%emt 0:00:10]} c5 {[%emt 0:02:14]} 6. dxc5 {[%emt 0:00:10]} Na6 {[%emt 0:00:06]} 7. g3 {[%emt 0:00:18]} Nxc5 {[%emt 0:00:07]} 8. Bg2 {[%emt 0:00:15]} Nce4 {[%emt 0:00:09]} 9. O-O {[%emt 0:00:24]} Nxc3 {[%emt 0:00:37]} 10. bxc3 {[%emt 0:00:12]} Be7 {[%emt 0:00:07]} 11. e4 {[%emt 0:00:29]} d6 {[%emt 0:01:12]} 12. e5 {[%emt 0:00:34]} dxe5 {[%emt 0:01:10]} 13. Nxe5 {[%emt 0:00:25]} Qc7 {[%emt 0:03:15]} 14. Qe2 {[%emt 0:00:31]} Nd7 {[%emt 0:01:22]} 15. Bf4 {[%emt 0:07:19]} Nxe5 {[%emt 0:01:57]} 16. Bxe5 {[%emt 0:01:11]} Bd6 {[%emt 0:00:06]} 17. Rfe1 {[%emt 0:05:06] LiveBook: 47 Games} Rb8 {[%emt 0:00:44]} 18. Rad1 {[%emt 0:03:48]} Bxe5 $1 {[%emt 0:00:17]} 19. Qxe5 {[%emt 0:00:12]} Qxe5 {[%emt 0:00:08]} 20. Rxe5 {[%emt 0:00:06]} b6 {[%emt 0:00:30]} 21. c5 {[%emt 0:04:00]} Ba6 $11 {[%emt 0:08:12]} 22. Rd7 {[%emt 0:23:52]} Rfd8 {[%emt 0:17:21]} 23. Rxd8+ {[%emt 0:20:52]} Rxd8 {[%emt 0:00:10]} 24. Bc6 {[%emt 0:01:19]} Rd1+ {[%emt 0:08:37]} 25. Kg2 {[%emt 0:00:17]} Bf1+ {[%emt 0:00:15]} 26. Kf3 {[%emt 0:01:08]} Rd3+ {[%emt 0:00:42]} 27. Re3 {[%emt 0:02:05]} bxc5 {[%emt 0:01:52]} 28. Be4 {[%emt 0:03:22]} Rxe3+ {[%emt 0:06:47]} 29. Kxe3 {[%emt 0:00:13]} Bc4 {[%emt 0:01:22]} 30. a3 {[%emt 0:01:15]} h6 {[%emt 0:10:10]} 31. h4 {[%emt 0:05:32]} Kf8 {[%emt 0:00:16]} 32. Bd3 {[%emt 0:06:51]} Bd5 {[%emt 0:02:31]} 33. Kf4 {[%emt 0:04:48]} Ke7 {[%emt 0:00:52]} 34. g4 {[%emt 0:01:15]} f6 {[%emt 0:06:49]} 35. g5 {[%emt 0:02:36]} Bc6 {[%emt 0:09:38]} 36. Bg6 {[%emt 0:04:47]} e5+ {[%emt 0:07:34]} 37. Kf5 {[%emt 0:01:07]} Ba4 {[%emt 0:00:16]} 38. gxf6+ {[%emt 0:00:56]} gxf6 {[%emt 0:00:06]} 39. Kg4 {[%emt 0:00:13]} Bd1+ {[%emt 0:01:11]} 40. f3 {[%emt 0:00:47]} Ke6 {[%emt 0:06:34]} 41. Be4 {[%emt 0:10:22]} Be2 {[%emt 0:00:35]} 42. Bc2 {[%emt 0:01:29]} Kd5 {[%emt 0:01:38]} 43. Bb3+ {[%emt 0:01:52]} c4 {[%emt 0:00:07]} 44. Bc2 {[%emt 0:00:17]} Bd3 {[%emt 0:00:23]} 45. Ba4 {[%emt 0:01:44]} f5+ {[%emt 0:06:34]} 46. Kg3 {[%emt 0:01:19]} e4 {[%emt 0:10:08]} 47. Kf4 {[%emt 0:01:28]} exf3 {[%emt 0:00:13]} 48. Kxf3 {[%emt 0:00:15]} Ke5 {[%emt 0:00:06]} 49. Ke3 {[%emt 0:01:52]} Be4 {[%emt 0:00:35]} 50. Bb5 {[%emt 0:01:03]} Bd5 {[%emt 0:00:23]} 51. Ba4 {[%emt 0:00:39]} f4+ {[%emt 0:00:59]} 52. Kf2 {[%emt 0:01:53]} Kf5 {[%emt 0:00:08]} 53. h5 {[%emt 0:04:16]} Bf7 {[%emt 0:01:53]} 54. Bd1 {[%emt 0:00:55]} Kg5 {[%emt 0:01:04]} 55. Bf3 {[%emt 0:02:27]} Kh4 {[%emt 0:01:30]} 56. Be2 {[%emt 0:01:27]} Bd5 {[%emt 0:00:18]} 57. Bd1 {[%emt 0:00:48]} Kg5 {[%emt 0:01:06]} 58. Be2 {[%emt 0:00:16]} f3 {[%emt 0:01:15]} 59. Bf1 {[%emt 0:00:53]} Kxh5 {[%emt 0:00:46]} 60. Bh3 {[%emt 0:00:17]} Kg5 {[%emt 0:00:18]} 61. Ke3 {[%emt 0:00:07]} Kh4 {[%emt 0:00:13]} 62. Kd4 0-1

[Event "DEN-ch 2019"]
[Site "Svendborg"]
[Date "2019.04.15"]
[Round "3.1"]
[White "Hansen, Sune Berg"]
[Black "Antonsen, Mikkel"]
[Result "1-0"]
[ECO "A13"]
[WhiteElo "2590"]
[BlackElo "2426"]
[Annotator "ChessBase"]
[PlyCount "119"]
[EventDate "2019.04.13"]
[EventType "tourn"]
[EventCountry "DEN"]
[SourceTitle "playchess.com"]
[Source "ChessBase"]
[SourceQuality "1"]
[TimeControl "40/5400+30:1800+30"]

1. c4 {[%emt 0:00:00]} e6 {[%emt 0:03:04]} 2. Nf3 {[%emt 0:00:17]} Nf6 {[%emt 0:00:43]} 3. Nc3 {[%emt 0:00:16]} d5 {[%emt 0:00:06]} 4. e3 {[%emt 0:00:04]} b6 {[%emt 0:01:49]} 5. b3 {[%emt 0:03:30]} Bb7 {[%emt 0:00:14]} 6. Bb2 {[%emt 0:00:26]} Bd6 {[%emt 0:05:05]} 7. cxd5 {[%emt 0:03:15]} exd5 {[%emt 0:00:05]} 8. Nb5 {[%emt 0:03:23]} Be7 {[%emt 0:01:08]} 9. Be5 {[%emt 0:01:22]} Na6 {[%emt 0:00:01]} 10. Nbd4 {[%emt 0:08:58]} O-O {[%emt 0:07:33]} 11. Nc6 {[%emt 0:19:41]} Bxc6 {[%emt 0:03:26]} 12. Bxa6 {[%emt 0:00:25]} Nd7 {[%emt 0:13:08]} 13. Bb2 {[%emt 0:05:36]} Nc5 {[%emt 0:02:32]} 14. Be2 {[%emt 0:03:53]} Bb7 {[%emt 0:04:00]} 15. Qc2 {[%emt 0:03:51]} Ne6 {[%emt 0:03:44]} 16. Bd3 {[%emt 0:02:15]} h6 {[%emt 0:01:54]} 17. O-O {[%emt 0:06:03]} Bd6 {[%emt 0:09:23]} 18. Bh7+ {[%emt 0:03:03]} Kh8 {[%emt 0:00:04]} 19. Bf5 {[%emt 0:00:09]} Qe7 {[%emt 0:03:55]} 20. Rac1 {[%emt 0:02:38]} a5 {[%emt 0:04:17]} 21. a4 {[%emt 0:04:22]} Nc5 {[%emt 0:01:48]} 22. Qc3 {[%emt 0:01:53]} Rg8 {[%emt 0:00:06]} 23. Rfe1 {[%emt 0:03:55]} Ne4 {[%emt 0:00:56]} 24. Qc2 {[%emt 0:00:16]} Rae8 {[%emt 0:00:58]} 25. d3 {[%emt 0:01:15]} Ng5 {[%emt 0:00:19]} 26. Nd4 {[%emt 0:05:12]} c5 {[%emt 0:10:10]} 27. Nb5 {[%emt 0:01:08]} d4 {[%emt 0:00:07]} 28. f4 {[%emt 0:03:37]} Ne6 {[%emt 0:04:09]} 29. Qf2 {[%emt 0:03:18]} dxe3 {[%emt 0:01:14]} 30. Rxe3 {[%emt 0:00:17]} Bxf4 {[%emt 0:04:14]} 31. Rxe6 {[%emt 0:00:39]} Bxh2+ {[%emt 0:07:04]} 32. Kxh2 {[%emt 0:00:37]} fxe6 {[%emt 0:00:04]} 33. Bg6 {[%emt 0:02:58]} Ref8 {[%emt 0:01:21]} 34. Qg3 {[%emt 0:00:10]} Bd5 {[%emt 0:05:02]} 35. Re1 {[%emt 0:01:19]} Rf6 {[%emt 0:00:56]} 36. Be4 {[%emt 0:03:41]} Bxe4 {[%emt 0:01:05]} 37. Rxe4 {[%emt 0:00:19]} Rf5 {[%emt 0:01:07]} 38. Nd6 {[%emt 0:01:46]} Rg5 {[%emt 0:00:47]} 39. Qf4 {[%emt 0:00:16]} Rf8 {[%emt 0:00:23]} 40. Rxe6 {[%emt 0:00:29]} Rxf4 {[%emt 0:01:21]} 41. Rxe7 {[%emt 0:30:06]} Kh7 {[%emt 0:04:48]} 42. Ne4 {[%emt 0:00:00]} Rg6 {[%emt 0:00:12]} 43. Rd7 {[%emt 0:00:00]} Rf1 {[%emt 0:02:03]} 44. Be5 {[%emt 0:00:00]} h5 {[%emt 0:01:01]} 45. g3 {[%emt 0:00:00]} Rf5 {[%emt 0:02:22]} 46. Bc3 {[%emt 0:00:00]} Kg8 {[%emt 0:03:14]} 47. Kh3 {[%emt 0:00:00]} Rf1 {[%emt 0:00:42]} 48. Be5 {[%emt 0:00:00]} Rh1+ {[%emt 0:01:28]} 49. Kg2 {[%emt 0:00:00]} Rb1 {[%emt 0:00:39]} 50. Kf3 {[%emt 0:00:00]} Rf1+ {[%emt 0:11:34]} 51. Ke3 {[%emt 0:00:00]} Rf8 {[%emt 0:01:07]} 52. Rb7 {[%emt 0:00:00]} Re8 {[%emt 0:00:42]} 53. Bf4 {[%emt 0:00:00]} Rc6 {[%emt 0:01:24]} 54. Rd7 {[%emt 0:00:00]} Rce6 {[%emt 0:02:36]} 55. Rd5 {[%emt 0:00:00]} g6 {[%emt 0:00:21]} 56. Kf3 {[%emt 0:00:08]} Kg7 {[%emt 0:00:37]} 57. Bg5 {[%emt 0:01:23]} Rf8+ {[%emt 0:00:15]} 58. Kg2 {[%emt 0:00:43]} Rf5 {[%emt 0:01:17]} 59. Rd7+ {[%emt 0:00:14]} Rf7 {[%emt 0:00:14]} 60. Bh6+ {[%emt 0:00:26]} 1-0

[Event "DEN-ch 2019"]
[Site "Svendborg"]
[Date "2019.04.15"]
[Round "3.2"]
[White "Thybo, Jesper Sondergaard"]
[Black "Aabling-Thomsen, Jakob"]
[Result "0-1"]
[ECO "E71"]
[WhiteElo "2513"]
[BlackElo "2358"]
[Annotator "ChessBase"]
[PlyCount "88"]
[EventDate "2019.04.13"]
[EventType "tourn"]
[EventCountry "DEN"]
[SourceTitle "playchess.com"]
[Source "ChessBase"]
[SourceQuality "1"]
[TimeControl "40/5400+30:1800+30"]

1. d4 {[%emt 0:00:00]} Nf6 {[%emt 0:00:00]} 2. c4 {[%emt 0:00:00]} g6 {[%emt 0:00:24]} 3. Nc3 {[%emt 0:00:00]} Bg7 {[%emt 0:00:15]} 4. e4 {[%emt 0:00:00]} d6 {[%emt 0:00:06]} 5. h3 {[%emt 0:00:13]} O-O {[%emt 0:00:45]} 6. Be3 {[%emt 0:00:14]} c5 {[%emt 0:01:32]} 7. Nf3 {[%emt 0:00:27]} cxd4 {[%emt 0:01:39]} 8. Nxd4 {[%emt 0:00:29]} Nc6 {[%emt 0:01:24]} 9. Be2 {[%emt 0:00:26]} Nxd4 {[%emt 0:03:18]} 10. Bxd4 {[%emt 0:00:31]} Bd7 {[%emt 0:01:06]} 11. O-O {[%emt 0:00:50]} Bc6 {[%emt 0:06:24]} 12. Qc2 {[%emt 0:01:10]} a5 {[%emt 0:00:28]} 13. Rad1 {[%emt 0:05:31]} Qc7 {[%emt 0:01:09]} 14. Nd5 {[%emt 0:03:17]} Bxd5 {[%emt 0:02:19]} 15. exd5 {[%emt 0:00:09]} Nd7 {[%emt 0:06:07]} 16. Bxg7 {[%emt 0:00:26]} Kxg7 {[%emt 0:00:03]} 17. Rd3 {[%emt 0:01:40]} Kg8 {[%emt 0:03:12]} 18. Re3 {[%emt 0:03:19]} Rfe8 {[%emt 0:07:47]} 19. Qc3 {[%emt 0:05:11]} a4 {[%emt 0:07:48]} 20. Re1 {[%emt 0:04:37]} Qa5 {[%emt 0:01:56]} 21. Qc1 {[%emt 0:00:38]} Nf6 {[%emt 0:11:59]} 22. Bf1 {[%emt 0:13:50]} Kf8 {[%emt 0:03:08]} 23. R3e2 {[%emt 0:07:51]} Rac8 {[%emt 0:05:06]} 24. Qh6+ {[%emt 0:07:30]} Kg8 {[%emt 0:00:02]} 25. Rxe7 {[%emt 0:00:17]} Qxe1 {[%emt 0:01:55]} 26. Rxe1 {[%emt 0:00:07]} Rxe1 {[%emt 0:00:02]} 27. Qf4 {[%emt 0:19:44]} Ne4 {[%emt 0:08:02]} 28. f3 {[%emt 0:01:58]} g5 {[%emt 0:01:11]} 29. Qh2 {[%emt 0:01:38]} Nd2 {[%emt 0:01:50]} 30. Qxd6 {[%emt 0:03:38]} Rxf1+ {[%emt 0:16:08]} 31. Kh2 {[%emt 0:00:04]} Re1 {[%emt 0:05:09]} 32. Qf6 {[%emt 0:02:33]} h6 {[%emt 0:01:18]} 33. d6 {[%emt 0:03:41]} Rf8 {[%emt 0:02:21]} 34. Qxh6 {[%emt 0:02:52]} Nf1+ {[%emt 0:00:27]} 35. Kg1 {[%emt 0:00:26]} Re6 {[%emt 0:00:18]} 36. Qxg5+ {[%emt 0:01:17]} Rg6 {[%emt 0:00:01]} 37. Qe7 {[%emt 0:04:47]} Re6 {[%emt 0:00:09]} 38. Qc7 {[%emt 0:00:01]} Re1 {[%emt 0:00:32]} 39. Kf2 {[%emt 0:00:38]} Rfe8 {[%emt 0:00:10]} 40. f4 {[%emt 0:01:15]} R8e2+ {[%emt 0:00:46]} 41. Kf3 {[%emt 0:30:35]} Re3+ {[%emt 0:11:39]} 42. Kg4 {[%emt 0:00:00]} Rg3+ {[%emt 0:02:18]} 43. Kh5 {[%emt 0:00:00]} Kg7 {[%emt 0:07:36]} 44. Qc5 {[%emt 0:00:00]} Re8 {[%emt 0:03:45]} 0-1

[Event "DEN-ch 2019"]
[Site "Svendborg"]
[Date "2019.04.15"]
[Round "3.3"]
[White "Chatalbashev, Boris"]
[Black "Bjerre, Jonas Buhl"]
[Result "1-0"]
[ECO "E21"]
[WhiteElo "2521"]
[BlackElo "2470"]
[Annotator "ChessBase"]
[PlyCount "111"]
[EventDate "2019.04.13"]
[EventType "tourn"]
[EventCountry "DEN"]
[SourceTitle "playchess.com"]
[Source "ChessBase"]
[SourceQuality "1"]
[TimeControl "40/5400+30:1800+30"]

1. d4 {[%emt 0:01:51]} Nf6 {[%emt 0:00:00]} 2. c4 {[%emt 0:00:04]} e6 {[%emt 0:00:00]} 3. Nc3 {[%emt 0:00:04]} Bb4 {[%emt 0:00:14]} 4. Nf3 {[%emt 0:00:06]} c5 {[%emt 0:01:12]} 5. g3 {[%emt 0:00:06]} cxd4 {[%emt 0:00:56]} 6. Nxd4 {[%emt 0:00:06]} O-O {[%emt 0:00:11]} 7. Bg2 {[%emt 0:00:12]} d5 {[%emt 0:00:44]} 8. cxd5 {[%emt 0:02:35]} Nxd5 {[%emt 0:00:16]} 9. Qb3 {[%emt 0:00:17]} Qb6 {[%emt 0:01:34]} 10. Bxd5 {[%emt 0:01:26]} exd5 {[%emt 0:00:30]} 11. Be3 {[%emt 0:00:06]} Nc6 {[%emt 0:02:53]} 12. Nxc6 {[%emt 0:00:34]} Bxc3+ {[%emt 0:00:12]} 13. Qxc3 {[%emt 0:00:10]} Qxc6 {[%emt 0:00:10]} 14. Qxc6 {[%emt 0:07:24]} bxc6 {[%emt 0:00:08]} 15. Rc1 {[%emt 0:00:50]} Bd7 {[%emt 0:01:09]} 16. Kd2 {[%emt 0:01:55]} a5 {[%emt 0:07:27]} 17. Rc5 {[%emt 0:02:26]} a4 {[%emt 0:06:57]} 18. Bd4 {[%emt 0:00:53]} f6 {[%emt 0:04:02]} 19. f3 {[%emt 0:03:58]} Kf7 {[%emt 0:04:15]} 20. Rhc1 {[%emt 0:25:46]} Rfb8 {[%emt 0:04:43]} 21. g4 {[%emt 0:00:34]} h5 {[%emt 0:07:33]} 22. h3 {[%emt 0:00:19]} Rb4 {[%emt 0:07:59]} 23. Kd3 {[%emt 0:08:57]} Rbb8 {[%emt 0:06:34]} 24. Rg1 {[%emt 0:01:47]} hxg4 {[%emt 0:04:53]} 25. hxg4 {[%emt 0:02:09]} Rh8 {[%emt 0:01:31]} 26. g5 {[%emt 0:18:19]} Rh2 {[%emt 0:02:07]} 27. gxf6 {[%emt 0:00:05]} gxf6 {[%emt 0:00:12]} 28. Re1 {[%emt 0:00:45]} Rh4 {[%emt 0:10:52]} 29. Kc3 {[%emt 0:02:27]} Rh2 {[%emt 0:04:15]} 30. Kb4 {[%emt 0:02:50]} Re8 {[%emt 0:05:18]} 31. e3 {[%emt 0:03:52]} Rh4 {[%emt 0:01:42]} 32. Rcc1 {[%emt 0:01:16]} Rh3 {[%emt 0:05:57]} 33. f4 {[%emt 0:02:16]} Rb8+ {[%emt 0:02:05]} 34. Ka3 {[%emt 0:01:09]} Rb5 {[%emt 0:01:47]} 35. Rh1 {[%emt 0:04:26]} Rxh1 {[%emt 0:02:19]} 36. Rxh1 {[%emt 0:00:03]} c5 {[%emt 0:01:10]} 37. Rh7+ {[%emt 0:00:54]} Kg6 {[%emt 0:02:04]} 38. Rxd7 {[%emt 0:00:13]} cxd4 {[%emt 0:00:03]} 39. exd4 {[%emt 0:00:14]} Kf5 {[%emt 0:00:11]} 40. Ra7 {[%emt 0:05:52]} Kxf4 {[%emt 0:01:45]} 41. Rxa4 {[%emt 0:03:45]} Rb8 {[%emt 0:09:18]} 42. Ra6 {[%emt 0:02:17]} Ke4 {[%emt 0:05:27]} 43. Rxf6 {[%emt 0:02:16]} Ra8+ {[%emt 0:01:43]} 44. Kb4 {[%emt 0:03:30]} Rb8+ {[%emt 0:02:17]} 45. Kc5 {[%emt 0:10:27]} Rc8+ {[%emt 0:05:35]} 46. Rc6 {[%emt 0:05:02]} Rxc6+ {[%emt 0:00:06]} 47. Kxc6 {[%emt 0:00:03]} Kxd4 {[%emt 0:00:04]} 48. a4 {[%emt 0:00:30]} Kc4 {[%emt 0:03:34]} 49. a5 {[%emt 0:00:23]} d4 {[%emt 0:00:04]} 50. a6 {[%emt 0:00:38]} d3 {[%emt 0:00:04]} 51. a7 {[%emt 0:00:05]} d2 {[%emt 0:00:02]} 52. a8=Q {[%emt 0:00:05]} d1=Q {[%emt 0:00:03]} 53. Qg8+ {[%emt 0:01:06]} Kb4 {[%emt 0:01:06]} 54. Qb8+ {[%emt 0:00:17]} Kc4 {[%emt 0:00:47]} 55. Qb5+ {[%emt 0:00:19]} Kd4 {[%emt 0:00:19]} 56. Qd5+ {[%emt 0:00:07]} 1-0

[Event "DEN-ch 2019"]
[Site "Svendborg"]
[Date "2019.04.15"]
[Round "3.4"]
[White "Teplyi, Igor"]
[Black "Rasmussen, Allan Stig"]
[Result "0-1"]
[ECO "A81"]
[WhiteElo "2418"]
[BlackElo "2541"]
[Annotator "ChessBase"]
[PlyCount "94"]
[EventDate "2019.04.13"]
[EventType "tourn"]
[EventCountry "DEN"]
[SourceTitle "playchess.com"]
[Source "ChessBase"]
[SourceQuality "1"]
[TimeControl "40/5400+30:1800+30"]

1. d4 {[%emt 0:03:49]} f5 {[%emt 0:00:05]} 2. g3 {[%emt 0:01:41]} Nf6 {[%emt 0:00:14]} 3. Bg2 {[%emt 0:00:08]} g6 {[%emt 0:00:21]} 4. Nf3 {[%emt 0:02:03]} Bg7 {[%emt 0:00:08]} 5. O-O {[%emt 0:00:09]} O-O {[%emt 0:00:30]} 6. b3 {[%emt 0:02:01]} d6 {[%emt 0:00:22]} 7. Bb2 {[%emt 0:02:54]} c6 {[%emt 0:00:24]} 8. c4 {[%emt 0:01:07]} Na6 {[%emt 0:12:17]} 9. Qc2 {[%emt 0:04:27]} Re8 {[%emt 0:17:18]} 10. a3 {[%emt 0:23:37]} Qc7 {[%emt 0:08:13]} 11. Nfd2 {[%emt 0:22:23]} e5 {[%emt 0:01:48]} 12. dxe5 {[%emt 0:01:16]} dxe5 {[%emt 0:00:08]} 13. e4 {[%emt 0:00:05]} Nc5 {[%emt 0:03:45]} 14. Nc3 {[%emt 0:00:10]} Qd8 {[%emt 0:19:08]} 15. Rad1 {[%emt 0:02:36]} Qd3 {[%emt 0:01:22]} 16. Qxd3 {[%emt 0:02:41]} Nxd3 {[%emt 0:00:02]} 17. Ba1 {[%emt 0:00:14]} Be6 {[%emt 0:03:06]} 18. exf5 {[%emt 0:06:29]} gxf5 {[%emt 0:00:46]} 19. Nf3 {[%emt 0:00:57]} Rad8 {[%emt 0:01:45]} 20. Nh4 {[%emt 0:02:51]} h5 {[%emt 0:05:34]} 21. Rb1 {[%emt 0:05:11]} Bh6 {[%emt 0:08:44]} 22. h3 {[%emt 0:03:58]} Kf7 {[%emt 0:01:27]} 23. b4 {[%emt 0:01:32]} e4 {[%emt 0:02:58]} 24. f4 {[%emt 0:00:11]} Bf8 {[%emt 0:02:14]} 25. Nd1 {[%emt 0:00:26]} Bxc4 {[%emt 0:01:17]} 26. Ne3 {[%emt 0:00:31]} Be6 {[%emt 0:01:05]} 27. Rfd1 {[%emt 0:05:24]} a5 {[%emt 0:02:17]} 28. Kh2 {[%emt 0:00:49]} axb4 {[%emt 0:00:14]} 29. axb4 {[%emt 0:00:10]} Ba2 {[%emt 0:01:17]} 30. b5 {[%emt 0:00:25]} Bxb1 {[%emt 0:01:00]} 31. Rxb1 {[%emt 0:00:06]} Nd5 {[%emt 0:02:43]} 32. Nhxf5 {[%emt 0:00:55]} Nxe3 {[%emt 0:00:11]} 33. Nxe3 {[%emt 0:00:06]} Bc5 {[%emt 0:00:19]} 34. Nc4 {[%emt 0:01:45]} e3 {[%emt 0:01:20]} 35. Bf3 {[%emt 0:00:05]} Rd5 {[%emt 0:01:13]} 36. bxc6 {[%emt 0:00:17]} bxc6 {[%emt 0:00:04]} 37. Be5 {[%emt 0:01:56]} Nxe5 {[%emt 0:01:02]} 38. fxe5 {[%emt 0:01:22]} Ra8 {[%emt 0:00:48]} 39. Bxh5+ {[%emt 0:00:56]} Ke7 {[%emt 0:00:03]} 40. Rb2 {[%emt 0:01:17]} Ra4 {[%emt 0:01:30]} 41. Rc2 {[%emt 0:02:15]} Rd8 {[%emt 0:07:32]} 42. Kg2 {[%emt 0:10:39]} Rf8 {[%emt 0:01:16]} 43. Nd6 {[%emt 0:05:15]} Bxd6 {[%emt 0:03:22]} 44. exd6+ {[%emt 0:00:05]} Kxd6 {[%emt 0:00:10]} 45. Bf3 {[%emt 0:00:14]} c5 {[%emt 0:03:43]} 46. Re2 {[%emt 0:00:15]} Ra3 {[%emt 0:00:57]} 47. h4 {[%emt 0:00:13]} Rd3 {[%emt 0:00:44]} 0-1

[Event "DEN-ch 2019"]
[Site "Svendborg"]
[Date "2019.04.15"]
[Round "3.5"]
[White "Ochsner, Bjorn Moller"]
[Black "Olsen, Filip Boe"]
[Result "1-0"]
[ECO "B12"]
[WhiteElo "2486"]
[BlackElo "2414"]
[Annotator "ChessBase"]
[PlyCount "73"]
[EventDate "2019.04.13"]
[EventType "tourn"]
[EventCountry "DEN"]
[SourceTitle "playchess.com"]
[Source "ChessBase"]
[SourceQuality "1"]
[TimeControl "40/5400+30:1800+30"]

1. e4 {[%emt 0:00:00]} c6 {[%emt 0:00:00]} 2. d4 {[%emt 0:00:00]} d5 {[%emt 0:00:00]} 3. e5 {[%emt 0:00:00]} c5 {[%emt 0:00:10]} 4. dxc5 {[%emt 0:00:00]} e6 {[%emt 0:00:13]} 5. a3 {[%emt 0:00:04]} Bxc5 {[%emt 0:00:18]} 6. Nf3 {[%emt 0:00:19]} Ne7 {[%emt 0:00:15]} 7. Bd3 {[%emt 0:01:27]} Ng6 {[%emt 0:04:27]} 8. O-O {[%emt 0:01:52]} O-O {[%emt 0:01:29]} 9. Re1 {[%emt 0:29:18]} Nc6 {[%emt 0:04:29]} 10. b4 {[%emt 0:02:42]} Bb6 {[%emt 0:02:15]} 11. Bb2 {[%emt 0:01:07]} f6 {[%emt 0:03:43]} 12. exf6 {[%emt 0:05:05]} gxf6 {[%emt 0:00:18]} 13. c4 {[%emt 0:03:54]} Nf4 {[%emt 0:04:09]} 14. Nc3 {[%emt 0:18:50]} Nxd3 {[%emt 0:27:34]} 15. Qxd3 {[%emt 0:00:07]} dxc4 {[%emt 0:00:32]} 16. Qxc4 {[%emt 0:00:49]} Nd4 {[%emt 0:06:39]} 17. Nxd4 {[%emt 0:03:59]} Qxd4 {[%emt 0:00:31]} 18. Qe2 {[%emt 0:00:43]} Qf4 {[%emt 0:07:05]} 19. Rad1 {[%emt 0:04:31]} e5 {[%emt 0:06:51]} 20. Nd5 {[%emt 0:01:17]} Qg4 {[%emt 0:01:19]} 21. Qd2 {[%emt 0:14:15]} Be6 {[%emt 0:03:08]} 22. Nxb6 {[%emt 0:00:53]} axb6 {[%emt 0:00:13]} 23. Re3 {[%emt 0:01:32]} Kf7 {[%emt 0:04:39]} 24. h3 {[%emt 0:04:29]} Qh5 {[%emt 0:02:32]} 25. Qd6 {[%emt 0:00:38]} Rac8 {[%emt 0:01:02]} 26. Rf3 {[%emt 0:00:24]} Rfd8 {[%emt 0:02:37]} 27. Qxd8 {[%emt 0:00:03]} Rxd8 {[%emt 0:00:10]} 28. Rxd8 {[%emt 0:00:01]} Ke7 {[%emt 0:00:43]} 29. Rd2 {[%emt 0:00:45]} Qg5 {[%emt 0:01:20]} 30. Bc1 {[%emt 0:00:32]} Qg6 {[%emt 0:01:18]} 31. Rc3 {[%emt 0:00:53]} b5 {[%emt 0:01:59]} 32. Rc7+ {[%emt 0:01:22]} Ke8 {[%emt 0:01:17]} 33. Kh2 {[%emt 0:00:32]} Qb1 {[%emt 0:09:49]} 34. Rd6 {[%emt 0:00:43]} Bc4 {[%emt 0:00:39]} 35. Be3 {[%emt 0:00:25]} Qf5 {[%emt 0:01:03]} 36. Rxb7 {[%emt 0:00:39]} Qe4 {[%emt 0:01:16]} 37. Rg7 {[%emt 0:00:59]} 1-0